Cogmind - Beta 16.1 @@@ ROGUE MODE // 2026.03.23 @ 01:58:12 Player: Skrub Result: Destroyed self with Missile Launcher Performance ------------- Evolutions (2) 1000 Regions Visited (6) 1200 Robots Destroyed (108) 540 Value Destroyed (3051) 3051 Prototype IDs (5) 100 Alien Tech Used (0) 0 Bonus (161) 161 TOTAL SCORE: 6052 Bonus ------- High Alert Combat Kills 161 Cogmind --------- Core Integrity 0/550 Matter 102/300 Energy 16/100 System Corruption 8% Temperature Cool (0) Movement Walking (190) Ox1 Location -8/Materials Parts ------- > --- POWER (2) -------- (None) > --- PROPULSION (3) --- Carbon-fiber Leg > --- UTILITY (4) ------ Medium Storage Unit > --- WEAPON (2) ------- Missile Launcher > --- INVENTORY (10) --- Carbon-fiber Leg Compact Matter Pod (150) Particle Charger Advanced ECM Suite Relay Coupler [Behemoth] (8) Remote Datajack Peak State ------------ > --- POWER ------------ Light Deuterium Engine Micro Nuclear Core > --- PROPULSION ------- Carbon-fiber Leg Carbon-fiber Leg VSS Leg > --- UTILITY ---------- Medium Storage Unit Powered Armor Improved Recalibrator > --- WEAPON ----------- Assault Cannon Assault Cannon > --- INVENTORY -------- Compact Matter Pod Particle Charger Advanced ECM Suite Relay Coupler [Behemoth] Minigun Missile Launcher Remote Datajack [Rating: 35] Favorites ----------- Power Ion Engine Engine Ion Engine Power Core Light Nuclear Core Propulsion Advanced Treads Treads Advanced Treads Leg Carbon-fiber Leg Flight Unit Improved Flight Unit Utility Improved Targeting Computer Device Cooling System Storage Medium Storage Unit Processor Improved Targeting Computer Hackware Hacking Suite Protection Powered Armor Weapon Advanced Beam Cannon Energy Gun EM Pulse Gun Energy Cannon Advanced Beam Cannon Ballistic Gun Gauss Rifle Ballistic Cannon Assault Cannon Launcher Grenade Launcher Special Melee Weapon Improved Datajack Build | -11 -10 -9 -9 -9 -8 -8 ------- Run | Yrd Mat Mat Min Exi Min Mat Slots Evolved 4 | . . 2 . . . 2 Power 1 | . . . . . . 1 Propulsion 1 | . . 1 . . . . Utility 2 | . . 1 . . . 1 Weapon . | . . . . . . . Parts Attached 76 | 6 7 15 3 1 3 41 Power 18 | 1 . 2 . . 2 13 Engine 13 | 1 . 2 . . 1 9 Core 5 | . . . . . 1 4 Reactor . | . . . . . . . Propulsion 20 | 2 2 5 3 . . 8 Treads 3 | . . . 3 . . . Leg 16 | 2 2 4 . . . 8 Wheel . | . . . . . . . Hover . | . . . . . . . Flight 1 | . . 1 . . . . Utility 19 | 1 1 6 . 1 1 9 Device 9 | . . 3 . 1 1 4 Storage 3 | 1 1 1 . . . . Processor 4 | . . 2 . . . 2 Hackware 2 | . . . . . . 2 Protection 1 | . . . . . . 1 Artifact . | . . . . . . . Weapon 19 | 2 4 2 . . . 11 Energy Gun 4 | 2 . . . . . 2 Energy Cannon 4 | . 2 2 . . . . Ballistic Gun 4 | . 1 . . . . 3 Ballistic Cannon 4 | . . . . . . 4 Launcher 2 | . 1 . . . . 1 Special Weapon . | . . . . . . . Impact Weapon . | . . . . . . . Slashing Weapon . | . . . . . . . Piercing Weapon . | . . . . . . . Special Melee Weapon 1 | . . . . . . 1 Unidentified Prototypes 5 | . . 2 . 1 . 2 Parts Lost 37 | . 2 4 1 . 2 28 Power 11 | . . 1 . . 2 8 Propulsion 6 | . . . 1 . . 5 Utility 10 | . . 2 . . . 8 Weapon 10 | . 2 1 . . . 7 Highest Loss Streak 8 | . 1 2 1 . 1 8 To Critical Strikes 2 | . . . . . . 2 Average Backups 7 | 1 7 7 6 8 9 7 Power . | . 1 . . 1 . . Propulsion . | . 2 2 . . . . Utility 4 | . 2 2 4 6 5 3 Weapon 2 | . . 1 1 1 3 3 Tool/Special . | . . . . . . . Unused Backups 15 | . 1 5 . . . 9 Power 2 | . 1 1 . . . . Propulsion 2 | . . 2 . . . . Utility 7 | . . 1 . . . 6 Weapon 3 | . . 1 . . . 2 Tool/Special 1 | . . . . . . 1 Average Slot Usage (%) 93 | . 94 98 99 100 99 87 Engine 9 | . 14 11 11 11 7 8 Core 3 | . . . . . 3 6 Treads 14 | . . . 31 33 33 4 Leg 15 | . 27 32 . . . 20 Device 8 | . . 10 11 11 11 7 Storage 12 | . 23 15 11 11 11 8 Processor 9 | . . 5 11 11 11 12 Energy Cannon 13 | . 20 21 22 22 22 . Ballistic Gun 2 | . . . . . . 6 Ballistic Cannon 2 | . . . . . . 7 Peak Build Rating 35 | 6 7 25 23 29 30 35 Average Rating 23 | 4 6 20 21 23 28 28 On Entrance 16 | . 6 7 22 23 29 25 Avg Prop Armor Cover (%) 7 | . . 5 8 8 8 7 Naked Turns . | . . . . . . . Heaviest Build 42 | 13 20 28 25 25 25 42 Greatest Support 45 | 20 20 36 44 44 44 45 Greatest Overweight (x) 2 | . 1 1 1 . . 2 Average Overweight (x) . | . . . . . . . Largest Inventory Capacity 10 | 8 8 10 10 10 10 10 Average Capacity 9 | 6 8 8 10 10 10 9 Most Carried 10 | 3 8 10 9 8 10 10 Average Carried 7 | 1 7 7 6 8 9 7 Final Capacity 10 | 8 8 10 10 10 10 10 Final Carried 10 | 3 8 8 8 8 10 6 Class Distribution -------------------- 78% | Mutant 21% | Scavenger-Mutant Dominant Class ---------------- Mutant | -10/Materials Mutant | -9/Materials Mutant | -9/Mines Mutant | -9/Exiles Mutant | -8/Mines Scavenger-Mutant | -8/Materials Resources | -11 -10 -9 -9 -9 -8 -8 ----------- Run | Yrd Mat Mat Min Exi Min Mat Matter Collected 2725 | 143 126 505 30 . 50 1871 Remotely . | . . . . . . . Salvage Created 3369 | . 342 714 36 . 237 2040 Parts 185 | . 28 36 4 . 15 102 Haulers Intercepted 7 | . 1 4 . . . 2 Recyclers Shooed 1 | . . . . . . 1 Parts Field Recycled . | . . . . . . . Retrieved Matter . | . . . . . . . Parts Self-Destructed . | . . . . . . . Prevented . | . . . . . . . Parts Restored 1 | . . . . . . 1 Broken 1 | . . . . . . 1 Kills | -11 -10 -9 -9 -9 -8 -8 ------- Run | Yrd Mat Mat Min Exi Min Mat Combat Hostiles Destroyed 71 | . 9 8 3 . 7 44 Guns 13 | . 1 . . . . 12 Cannons 49 | . 1 8 3 . 6 31 AOE 8 | . 7 . . . . 1 Classes Destroyed 14 | . 8 2 . . 2 2 Worker 6 | . 2 . . . 1 3 Builder 4 | . 2 . . . . 2 Hauler 7 | . 1 4 . . . 2 Recycler 6 | . 2 1 . . . 3 Mechanic 2 | . 1 . . . . 1 Operator 3 | . . . . . . 3 Watcher 9 | . 2 3 . . . 4 Swarmer 17 | . 5 . 3 . 3 6 Grunt 35 | . 4 4 . . 2 25 Brawler 4 | . . . . . 1 3 Duelist 1 | . . 1 . . . . Sentry 11 | . . 3 . . . 8 Hunter 2 | . . . . . 1 1 Programmer 1 | . . . . . . 1 Best Kill Streak 8 | . 8 4 3 . 3 8 Combat Bots Only 5 | . 4 2 3 . 3 5 Max Kills in Single Turn 8 | . 8 2 1 . 1 2 Gunslinging . | . . . . . . . Exploded 3 | . 3 . . . . 1 Melee . | . . . . . . . Uniques/NPCs Destroyed . | . . . . . . . Combat | -11 -10 -9 -9 -9 -8 -8 -------- Run | Yrd Mat Mat Min Exi Min Mat Hostile Shots Fired 526 | . 47 70 10 . 37 362 Missed 145 | . 21 23 . . 9 92 Hits 381 | . 26 47 10 . 28 270 Melee 4 | . . 2 . . . 2 Projectile 377 | . 26 45 10 . 28 268 Critical Strikes 15 | . . 4 . . 1 10 Part Disruptions 1 | . . . . . . 1 Damage Taken 5188 | . 386 664 77 . 411 3650 Core 839 | . 86 118 21 . 55 559 Absorbed by Shields 173 | . . . . . . 173 Regen/Repaired (Parts) 152 | . . . . . . 152 Core Remaining (%) 72 | 100 65 . . . 51 . Volleys Fired 291 | . 42 44 5 . 18 182 Largest 2 | . 2 2 2 . 2 2 Hottest 136 | . 120 136 136 . 136 136 Shots Fired 468 | . 54 88 10 . 36 280 Gun 134 | . 23 . . . . 111 Cannon 320 | . 18 88 10 . 36 168 Launcher 14 | . 13 . . . . 1 Special . | . . . . . . . Kinetic 271 | . . . . . . 271 Thermal 163 | . 21 88 10 . 36 8 Explosive 14 | . 13 . . . . 1 Electromagnetic 20 | . 20 . . . . . Robot Hit Streak 12 | . 5 12 2 . 5 10 Robot Miss Streak 6 | . 6 2 2 . 2 5 Penetration Max 1 | . . . . . . 1 Secondary Targets 1 | . . . . . . 1 Max Gunslinging Chain 1 | . . . . . . 1 Shots Hit Robots 292 | . 25 54 5 . 23 185 Core Hits 146 | . 24 18 3 . 9 92 Critical Kills . | . . . . . . . Critical Parts Destroyed 2 | . . . . . . 2 Critical Strikes 15 | . 1 . . . . 14 Destroy 2 | . . . . . . 2 Blast 12 | . . . . . . 12 Corrupt 1 | . 1 . . . . . Melee Attacks 3 | . . . . . . 3 Impact . | . . . . . . . Slashing . | . . . . . . . Piercing . | . . . . . . . Sneak Attacks . | . . . . . . . Combat Hostiles . | . . . . . . . Follow-up Attacks . | . . . . . . . Damage Inflicted 9558 | . 1680 1073 103 . 503 6199 Guns 1766 | . 167 . . . . 1599 Cannons 5941 | . 90 1063 103 . 489 4196 Explosions 1827 | . 1423 . . . . 404 Melee . | . . . . . . . Ramming 24 | . . 10 . . 14 . Kinetic 5734 | . . . . . . 5734 Thermal 2947 | . 935 1063 103 . 489 357 Explosive 686 | . 578 . . . . 108 Electromagnetic 167 | . 167 . . . . . Impact . | . . . . . . . Slashing . | . . . . . . . Piercing . | . . . . . . . Highest Corruption 8 | . . . . . . 8 Average Corruption 4 | . . . . . . 4 Corruption Purged . | . . . . . . . Corruption Blocked . | . . . . . . . Effects 49 | . . . . . . 49 Message Errors 18 | . . . . . . 18 Matter Fused 13 | . . . . . . 13 Heat Flow Errors 4 | . . . . . . 4 Energy Discharges 3 | . . . . . . 3 Parts Rejected 2 | . . . . . . 2 Data Loss (minor) 1 | . . . . . . 1 Data Loss (major) 2 | . . . . . . 2 Misfires 1 | . . . . . . 1 Alerts 3 | . . . . . . 3 Weapon Failures 2 | . . . . . . 2 Overload Shots . | . . . . . . . Overflow Damage 308 | . 148 1 1 . 13 145 Projectiles 126 | . . 1 1 . 13 111 Explosions 182 | . 148 . . . . 34 Melee . | . . . . . . . Knockbacks 35 | . . . . . . 35 Impact . | . . . . . . . Kinetic 31 | . . . . . . 31 Secondary 4 | . . . . . . 4 Self-Inflicted Damage 214 | . 102 . . . . 112 Shots 5 | . 3 . . . . 2 Rammed 1 | . . . . . 1 . Targets Rammed 5 | . . 2 . . 2 1 Kicked 3 | . . 2 . . . 1 Crushed 1 | . . . . . 1 . Highest Temperature 307 | . 300 300 . . 280 307 Average Temperature 84 | . 78 72 . . 132 81 Received Heat Transfer 2323 | . 105 336 . . 171 1711 Effects 8 | . . 3 . . . 5 Energy Bleed 1 | . . . . . . 1 Interference 6 | . . 3 . . . 3 Short Circuit 1 | . . . . . . 1 Siege Activations . | . . . . . . . Martial Activations . | . . . . . . . Shielding Activations . | . . . . . . . Robots Disrupted . | . . . . . . . Combat Hostiles . | . . . . . . . Robots Corrupted . | . . . . . . . Combat Hostiles . | . . . . . . . Parts Fried . | . . . . . . . Impact Corruptions . | . . . . . . . Robots Melted 1 | . . . . . 1 . Combat Hostiles 1 | . . . . . 1 . Parts Melted 6 | . 1 4 . . 1 . Heat Transferred 4141 | . 735 2072 185 . 888 261 Parts Sabotaged . | . . . . . . . Parts Stolen . | . . . . . . . Parts Stripped . | . . . . . . . Power Chain Reactions . | . . . . . . . Alert | -11 -10 -9 -9 -9 -8 -8 ------- Run | Yrd Mat Mat Min Exi Min Mat Maximum Alert Level 2 | . 1 . . . . 2 Low Security (%) 53 | 100 54 100 100 . 100 12 Level 1 30 | . 45 . . . . 52 Level 2 15 | . . . . . . 34 Level 3 . | . . . . . . . Level 4 . | . . . . . . . Level 5 . | . . . . . . . High Security . | . . . . . . . Max Security . | . . . . . . . Peak Influence 645 | . 327 73 78 . 85 645 Initial 28 | . . 28 18 . . . Average 188 | . 184 28 8 . 14 338 Influence Increases 2590 | . 464 328 70 . 190 1538 Destroy 0b10 Robot/C 1420 | . 180 160 60 . 140 880 Destroy 0b10 Robot/NC 185 | . 50 40 . . 5 90 Destroy Leader 342 | . 46 64 10 . 30 192 Successful Hack 79 | . 37 . . . . 42 Disable Machine 165 | . 75 . . . . 90 Destroy Structure 159 | . 76 4 . . . 79 Partial Spotted 15 | . . . . . . 15 Lose Combat Pursuer 225 | . . 60 . . 15 150 Influence Decreases 1961 | . 396 347 119 . 190 909 Entered New Map 71 | . . 40 31 . . . Time Decay 1533 | . 376 270 78 . 180 629 Lost Part 357 | . 20 37 10 . 10 280 Squads Dispatched 9 | . 1 2 . . . 6 Investigation . | . . . . . . . Extermination . | . . . . . . . Reinforcement 8 | . 1 2 . . . 5 Assault 1 | . . . . . . 1 Garrison . | . . . . . . . Intercept . | . . . . . . . Searches Triggered . | . . . . . . . Construction Impeded 1 | . . . . . . 1 Haulers Reinforced . | . . . . . . . Active Scanning Responses . | . . . . . . . Cargo Convoy Interrupts . | . . . . . . . Stealth | -11 -10 -9 -9 -9 -8 -8 --------- Run | Yrd Mat Mat Min Exi Min Mat Distress Signals 6 | . 2 1 . . . 3 Communications Jammed . | . . . . . . . Distress Signals . | . . . . . . . Times Spotted 136 | . 17 21 2 . 8 88 Peak Tracking Total 7 | . 7 5 2 . 3 6 Tactical Retreats 13 | . . 3 . . 1 9 ECM-based Alert Blocks 7 | . . . . . . 7 Traps | -11 -10 -9 -9 -9 -8 -8 ------- Run | Yrd Mat Mat Min Exi Min Mat Traps Triggered 3 | . . . . . . 3 Indirectly . | . . . . . . . Trap Hack Attempts . | . . . . . . . Triggered . | . . . . . . . Disarmed . | . . . . . . . Reprogrammed . | . . . . . . . Reused . | . . . . . . . Traps Extracted . | . . . . . . . Installed . | . . . . . . . Triggered . | . . . . . . . Machines | -11 -10 -9 -9 -9 -8 -8 ---------- Run | Yrd Mat Mat Min Exi Min Mat Machines Disabled 11 | . 5 . . . . 6 Max in Single Turn 5 | . 5 . . . . 1 Machines Repaired . | . . . . . . . Machines Dismantled . | . . . . . . . Machines Sabotaged . | . . . . . . . Overloaded Fab Kills . | . . . . . . . Hacking | -11 -10 -9 -9 -9 -8 -8 --------- Run | Yrd Mat Mat Min Exi Min Mat Machines Accessed 23 | . 5 1 . 4 . 13 Terminals 11 | . 5 . . . . 6 Fabricators . | . . . . . . . Repair Stations 2 | . . . . . . 2 Recycling Units 2 | . . . . . . 2 Scanalyzers 3 | . . 1 . . . 2 Garrison Access 1 | . . . . . . 1 Total Hacks 71 | . 25 2 . 4 . 40 Successful 43 | . 14 1 . 4 . 24 Failed 27 | . 11 1 . . . 15 Catastrophic 1 | . 1 . . . . . Database Lockouts 1 | . . . . . . 1 Manual 60 | . 22 3 . 1 . 34 Terminals 44 | . 25 . . . . 19 Fabricators . | . . . . . . . Repair Stations 4 | . . . . . . 4 Recycling Units 9 | . . . . . . 9 Scanalyzers 8 | . . 2 . . . 6 Garrison Access 2 | . . . . . . 2 Terminal Hacks 6 | . 2 . . 4 . . Record 5 | . 1 . . 4 . . Locate Traps 1 | . 1 . . . . . Fabricator Hacks . | . . . . . . . Repair Station Hacks 2 | . . . . . . 2 Scan Component 1 | . . . . . . 1 Repair 1 | . . . . . . 1 Recycling Unit Hacks . | . . . . . . . Scanalyzer 2 | . . . . . . 2 Insert Component 1 | . . . . . . 1 Retrieve Study 1 | . . . . . . 1 Garrison Access Hacks . | . . . . . . . Unauthorized Hacks 33 | . 12 1 . . . 20 Terminals 23 | . 12 . . . . 11 Track 2 | . 1 . . . . 1 Assimilate 2 | . 1 . . . . 1 Botnet 11 | . 5 . . . . 6 Operators 1 | . 1 . . . . . Skim 7 | . 4 . . . . 3 Fabricators . | . . . . . . . Repair Stations 2 | . . . . . . 2 Mechanics 2 | . . . . . . 2 Recycling Units 4 | . . . . . . 4 Reject 1 | . . . . . . 1 Recyclers 1 | . . . . . . 1 Mask 2 | . . . . . . 2 Scanalyzers 2 | . . 1 . . . 1 Researchers 2 | . . 1 . . . 1 Garrison Access 2 | . . . . . . 2 Restock 1 | . . . . . . 1 Reprogram 1 | . . . . . . 1 Data Cores Recovered . | . . . . . . . Used . | . . . . . . . Hacking Detections 14 | . 5 . . . . 9 Full Trace Events . | . . . . . . . Feedback Events . | . . . . . . . Feedback Blocked . | . . . . . . . Robot Schematics Acquired . | . . . . . . . Robots Built . | . . . . . . . Authchips . | . . . . . . . Time . | . . . . . . . Total Robot Build Rating . | . . . . . . . Part Schematics Acquired . | . . . . . . . Parts Built . | . . . . . . . Authchips . | . . . . . . . Time . | . . . . . . . Total Part Build Rating . | . . . . . . . Part Studies Acquired 1 | . . . . . . 1 Parts Repaired 1 | . . . . . . 1 Time 26 | . . . . . . 26 Parts Recycled . | . . . . . . . Recycled Matter . | . . . . . . . Retrieved Matter . | . . . . . . . Retrieved Components . | . . . . . . . Parts Scanalyzed 1 | . . . . . . 1 Part Schematics Acquired . | . . . . . . . Parts Damaged 1 | . . . . . . 1 Bothacking | -11 -10 -9 -9 -9 -8 -8 ------------ Run | Yrd Mat Mat Min Exi Min Mat Used RIF Installer . | . . . . . . . Robots Hacked 1 | . . . . . . 1 Non-combat . | . . . . . . . Combat 1 | . . . . . . 1 Robot Hacks Applied 1 | . . . . . . 1 parse_system 1 | . . . . . . 1 Relay Couplers Released 3 | . . . . . . 3 Programmers 3 | . . . . . . 3 Fabnet Peak Effective % . | . . . . . . . Robots Rewired . | . . . . . . . Allies Hacked . | . . . . . . . Hacks Repelled . | . . . . . . . Allies | -11 -10 -9 -9 -9 -8 -8 -------- Run | Yrd Mat Mat Min Exi Min Mat Total Allies . | . . . . . . . Largest Group . | . . . . . . . Highest-Rated Group . | . . . . . . . Highest-Rated Ally . | . . . . . . . Total Orders . | . . . . . . . Ally Attacks . | . . . . . . . Total Damage . | . . . . . . . Kills . | . . . . . . . Allies Corrupted . | . . . . . . . Allies Melted . | . . . . . . . Intel | -11 -10 -9 -9 -9 -8 -8 ------- Run | Yrd Mat Mat Min Exi Min Mat Active Infowar (turns) 951 | . . 128 . 12 678 133 Sensors 698 | . . . . 12 678 8 Terrain 128 | . . 128 . . . . ECM 125 | . . . . . . 125 Robot Analysis Total . | . . . . . . . Derelict Logs Recovered 1 | . . . 1 . . . Drone Launches . | . . . . . . . Drone Recoveries . | . . . . . . . Exploration | -11 -10 -9 -9 -9 -8 -8 ------------- Run | Yrd Mat Mat Min Exi Min Mat Turns Passed 7454 | 68 949 691 802 977 1005 2962 Spaces Moved 4267 | 51 344 426 518 671 562 1695 Core 8 | 8 . . . . . . Treads 1960 | . . . 513 671 562 214 Legs 2299 | 43 344 426 5 . . 1481 Wheels . | . . . . . . . Hover . | . . . . . . . Flight . | . . . . . . . Fastest Speed 50 | 50 120 90 145 145 145 110 Average Speed 130 | 109 120 90 145 145 145 128 Slowest Speed 260 | 120 190 180 180 145 145 260 Overloaded Moves . | . . . . . . . Propulsion Burnouts . | . . . . . . . Robots Hopped . | . . . . . . . Potential Cave-ins . | . . . . . . . Cave-ins Triggered . | . . . . . . . Exploration Rate (%) 62 | 4 49 33 84 92 95 82 Regions Visited 6 Branch Regions 3 Pre-discovered Areas . | . . . . . . . Known Exits Taken . | . . . . . . . Unknown Exits Taken 6 | 1 1 1 1 1 1 . Scrap Searched 2 | . . . 1 . 1 . Spaces Dug . | . . . . . . . Terrain Destroyed 172 | . 87 . . . . 85 Melee . | . . . . . . . Projectile 39 | . . . . . . 39 AOE 133 | . 87 . . . . 46 Terrain Rammed . | . . . . . . . Walls Destroyed . | . . . . . . . Machines Disabled . | . . . . . . . Actions | -11 -10 -9 -9 -9 -8 -8 --------- Run | Yrd Mat Mat Min Exi Min Mat Total 5661 | 61 825 646 558 674 715 2182 Wait 888 | . 421 121 28 . 126 192 Move 4261 | 50 343 425 517 670 561 1695 Hop . | . . . . . . . Pick Up 66 | 5 7 17 3 . 4 30 Fast Attach 37 | 4 6 7 . . 1 19 Attach 39 | 2 1 8 3 1 1 23 Detach 5 | . . 1 . 1 . 3 Swap 16 | . . 4 . 2 1 9 Drop 50 | . 5 17 2 . 1 25 Fire 291 | . 42 44 5 . 18 182 Melee 3 | . . . . . . 3 Ram . | . . . . . . . Kick 3 | . . 2 . . . 1 Crush 2 | . . . . . 2 . Escape Stasis . | . . . . . . . Rewire . | . . . . . . . Trap . | . . . . . . . Miscellaneous . | . . . . . . . Route ------- -11/Scrapyard -10/Materials (discovered 2 exits: *Mat / [*Min]) -9/Materials -9/Mines (discovered 3 exits: *Mat x2 / *Exi) -9/Exiles -8/Mines (discovered 2 exits: *Mat x2) -8/Materials (discovered 2 exits: [*Fac x2]) History --------- Turn | Location | Event 10 | -11/Scrapyard | Discovered new exit (range 15) 69 | -11/Scrapyard | Entered Materials 365 | -10/Materials | Build established: Mutant 388 | -10/Materials | Discovered new exit (range 9) 911 | -10/Materials | Discovered new exit (range 12) 1018 | -10/Materials | Entered another Materials area 1018 | -9/Materials | Evolved 2 slots: Propulsion x1, Utility x1 1402 | -9/Materials | Discovered new exit (range 9) 1709 | -9/Materials | Entered Mines 1831 | -9/Mines | Met a Derelict bent on vengeance 2055 | -9/Mines | Discovered new exit (range 9) 2074 | -9/Mines | Learned Materials terminal intel 2488 | -9/Mines | Found a damaged Exp. Sensor Array with a note attached 2491 | -9/Mines | Found Prototype Device 2493 | -9/Mines | Discovered new exit (range 15) 2505 | -9/Mines | Deemed a non-threat by the Exiles lab entrance 2505 | -9/Mines | Discovered new exit (range 5) 2511 | -9/Mines | Entered Exiles 2511 | -9/Exiles | Found Exiles lab abandoned 2791 | -9/Exiles | Discovered new exit (range 11) 3347 | -9/Exiles | Identified Exp. Sensor Array 3488 | -9/Exiles | Entered Mines 3687 | -8/Mines | Discovered new exit (range 8) 4329 | -8/Mines | Discovered new exit (range 3) 4493 | -8/Mines | Entered Materials 4493 | -8/Materials | Evolved 2 slots: Power x1, Utility x1 4494 | -8/Materials | Loaded intel: 12 terminal locations 5196 | -8/Materials | Central database locked down 5463 | -8/Materials | Discovered new exit (range 13) 5564 | -8/Materials | Found Powered Armor 5567 | -8/Materials | Found Powered Armor 5883 | -8/Materials | Build established: Scavenger-Mutant 5925 | -8/Materials | Repaired Med. Storage Unit 5966 | -8/Materials | Discovered new exit (range 16) 6465 | -8/Materials | Lost 3 parts (1p1n1w) 6493 | -8/Materials | First assault squad dispatched 6676 | -8/Materials | Lost 7 parts (2p1n2u2w) 6719 | -8/Materials | Core integrity fell below 50% 6800 | -8/Materials | Build established: Mutant 7322 | -8/Materials | Build established: Scavenger-Mutant 7432 | -8/Materials | Core integrity fell below 20% 7455 | -8/Materials | Destroyed self with Missile Launcher Last Messages --------------- 07430_ Acquired 2 matter. 07432_ ALERT: Construction progress impeded, dispatching reinforcements to local area. 07432_ U-05 Engineer sends out distress signal. 07435_ System corrupted: Carbon-fiber Leg rejected. 07440_ K-01 Serf collects debris. 07443_ Destroyed Flight Unit. 07443_ VSS Leg destroyed. 07444_ K-01 Serf collects debris. 07447_ Mic. Nuclear Core destroyed. 07448_ S-10 Pest destroyed. 07449_ Minigun destroyed. 07450_ Kicked G-47 Trooper. 07452_ Acquired Carbon-fiber Leg. 07452_ Critical hit (Burn: +37). 07453_ System corrupted: Missile Launcher failed to launch. 07454_ Imp. Recalibrator destroyed. 07455_ G-47 Trooper destroyed. Map ----- +----------------------------------------------------+ | #???????????????# """ #???????????????????? | | #???????????????# #???????????????????? | | ########??????????????##/#####???????????????????? | | ?????????############## #??????????????????????? | | ?????????# [#% #??????????????????????? | | ?????????# """ """*#!* #??????????????????????? | | ?????????# "G """%/! ##########?????????????? | | ?????????# """ """ #![ # #?????????????? | | ?????????# # # """ #?????????????? | | ????????############### # "Y" #?????????????? | | ????????# # =* #?????????????? | | ######### + = #?????????????? | | # """ #?????????????? | | ####################### # """ #?????????????? | | ????????########??????# # """ #?????????????? | | #####???# #??????# # #???"""???????? | | ##### #??????# ##########???"T"???????? | | #??????# #???????????????? | | T ! T #??????# %#???????????????? | | ##### #??????# #???????????????? | | #???# #??????# #### #???????????????? | | #?#####+"#######??# #??# #???????????????? | | ### #??# < #??# %#???????????????? | | + #??# #??#= ##########??????? | | # #### * ####### ###% %% * ???? | | #+##### """ =% /a gs@g=g%% #######?????????? | | # """"" * ###########=%%##??????????????? | | """ # """"" #????#######+#######??????????? | | """ # """"" ######% % #??????????? | | """ # "" += " #??????????? | | # ###### #??????????? | | # #????# """"" """"" #??????????? | | " ! # #????# """"" """"" #??????????? | | " # ! #????# """"" """"" #??????????? | | ####################????#############?#??????????? | | | | | | | | | | | | | | | | | | | | | | | | | | | | | | | +----------------------------------------------------+ Best States ------------- Heat Dissipation 53 Energy Generation 24 Energy Capacity 500 Matter Stores 300 Matter Capacity 300 Sight Range 16 Robot Scan Range 20 Terrain Scan Range 14 Terrain Scan Density 85 ECM Strength 2 Armor Coverage 400 Evasion (%) 57 Targeting Accuracy 12 Target Analysis 5 Recoil Reduction 2 Kinecelleration 30 Offensive Hacking 10 Item Schematics ----------------- None Robot Schematics ------------------ None Fabricated ------------ Nothing Repaired ---------- Med. Storage Unit | 39% | -8/Materials Studied --------- Hvy. Assault Cannon | -8/Materials | Hacked Alien Tech Used ----------------- None Achievements -------------- Botjacking Bumper Bots I Have A Map? Item+ May I Have Another? Overwhelming Sprinter Challenges ------------ None Game ------ Seed AssembledDecoderCompanion Manual? 0 Play Time 01:43:21 Cumulative 16.4 hours Start 2026.03.22 @ 23:42:01 End 2026.03.23 @ 01:58:12 Sessions 1 Manual Loads 0 Difficulty Rogue Special Mode None Game No. 23 Rogue 23 Adventurer 0 Explorer 0 Win Type - Total 0 Types 0/0/0/0/0/0/0/0/0/0 Lore% 9 Gallery% 16 Achievement% 15 Wizard Run 0 Options --------- Layout 1 ASCII 0 Keyboard 0 Movement Mouse Keybinds 0 Fullscreen 1 Font 48/Smallcaps Map View 50x35 Zoom Use 0% Tactical HUD 1 Map Filters NONE Filters NONE Steam 1 RUN: edccf5fb-3b89-46ba-a819-2be7d01487b0